{"text_format":"3","workbook":"xlsx","n_sheets":1,"sheets":["VYÚČTOVANIE VÝDAVKOV"],"not_rendered":{"defined_names":4},"read":"whole","date_system":"1900"}

{"sheet":"VYÚČTOVANIE VÝDAVKOV","index":0,"n_rows":22,"n_cols":12,"rows_kept":22,"merged":[[1,2,1,3],[1,5,1,6],[3,2,3,3],[3,6,3,7],[3,10,3,11],[4,2,4,3],[4,6,4,7],[4,10,4,11],[20,2,20,4],[20,6,20,8],[21,2,21,4],[21,6,21,8]]}
[null,"VYÚČTOVANIE VÝDAVKOV",{"$nulls":8},"Na použitie iba v rámci spoločnosti"]
[null,"ÚČEL:",null,null,"ČÍSLO VÝKAZU:",null,null,"PLATOBNÉ OBDOBIE","OD:",{"$f":"IF(COUNTA(ÚdajeOVýdavkoch[Dátum])=0,\"\",MIN(ÚdajeOVýdavkoch[Dátum]))","v":""},"DO:",{"$f":"IF(COUNTA(ÚdajeOVýdavkoch[Dátum])=0,\"\",MAX(ÚdajeOVýdavkoch[Dátum]))","v":""}]
[null,"INFORMÁCIE O ZAMESTNANCOVI:"]
[null,"MENO",{"$nulls":3},"POZÍCIA",{"$nulls":3},"DÁTUM NARODENIA"]
[null,"ODDELENIE",{"$nulls":3},"MANAŽÉR",{"$nulls":3},"ID ZAMESTNANCA"]
[]
[null,"Dátum","Účet","Popis","Hotel","Doprava","Palivo","Strava","Telefón","Zábava","Rôzne","Spolu"]
[{"$nulls":11},{"$f":"SUM(ÚdajeOVýdavkoch[[#This Row],[Hotel]:[Rôzne]])","v":{"v":0,"d":"0.00 EUR"}}]
[{"$nulls":11},{"$f":"SUM(ÚdajeOVýdavkoch[[#This Row],[Hotel]:[Rôzne]])","v":{"v":0,"d":"0.00 EUR"}}]
[{"$nulls":11},{"$f":"SUM(ÚdajeOVýdavkoch[[#This Row],[Hotel]:[Rôzne]])","v":{"v":0,"d":"0.00 EUR"}}]
[{"$nulls":11},{"$f":"SUM(ÚdajeOVýdavkoch[[#This Row],[Hotel]:[Rôzne]])","v":{"v":0,"d":"0.00 EUR"}}]
[{"$nulls":11},{"$f":"SUM(ÚdajeOVýdavkoch[[#This Row],[Hotel]:[Rôzne]])","v":{"v":0,"d":"0.00 EUR"}}]
[{"$nulls":11},{"$f":"SUM(ÚdajeOVýdavkoch[[#This Row],[Hotel]:[Rôzne]])","v":{"v":0,"d":"0.00 EUR"}}]
[{"$nulls":11},{"$f":"SUM(ÚdajeOVýdavkoch[[#This Row],[Hotel]:[Rôzne]])","v":{"v":0,"d":"0.00 EUR"}}]
[{"$nulls":11},{"$f":"SUM(ÚdajeOVýdavkoch[[#This Row],[Hotel]:[Rôzne]])","v":{"v":0,"d":"0.00 EUR"}}]
[{"$nulls":11},{"$f":"SUM(ÚdajeOVýdavkoch[[#This Row],[Hotel]:[Rôzne]])","v":{"v":0,"d":"0.00 EUR"}}]
[{"$nulls":11},{"$f":"SUM(ÚdajeOVýdavkoch[[#This Row],[Hotel]:[Rôzne]])","v":{"v":0,"d":"0.00 EUR"}}]
[{"$nulls":11},{"$f":"SUM(ÚdajeOVýdavkoch[[#This Row],[Hotel]:[Rôzne]])","v":{"v":0,"d":"0.00 EUR"}}]
[null,"Spolu",null,null,{"$f":"SUBTOTAL(109,ÚdajeOVýdavkoch[Hotel])","v":{"v":0,"d":"0.00 EUR"}},{"$f":"SUBTOTAL(109,ÚdajeOVýdavkoch[Doprava])","v":{"v":0,"d":"0.00 EUR"}},{"$f":"SUBTOTAL(109,ÚdajeOVýdavkoch[Palivo])","v":{"v":0,"d":"0.00 EUR"}},{"$f":"SUBTOTAL(109,ÚdajeOVýdavkoch[Strava])","v":{"v":0,"d":"0.00 EUR"}},{"$f":"SUBTOTAL(109,ÚdajeOVýdavkoch[Telefón])","v":{"v":0,"d":"0.00 EUR"}},{"$f":"SUBTOTAL(109,ÚdajeOVýdavkoch[Zábava])","v":{"v":0,"d":"0.00 EUR"}},{"$f":"SUBTOTAL(109,ÚdajeOVýdavkoch[Rôzne])","v":{"v":0,"d":"0.00 EUR"}},{"$f":"SUBTOTAL(109,ÚdajeOVýdavkoch[Spolu])","v":{"v":0,"d":"0.00 EUR"}}]
[{"$nulls":10},"MEDZISÚČET",{"$f":"ÚdajeOVýdavkoch[[#Totals],[Spolu]]","v":{"v":0,"d":"0.00 EUR"}}]
[null,"SCHVÁLIL:",{"$nulls":3},"POZNÁMKY: ",{"$nulls":4},"ZÁLOHY",{"v":0,"d":"0.00 EUR"}]
[{"$nulls":10},"SPOLU",{"$f":"Medzisúčet-Zálohy","v":{"v":0,"d":"0.00 EUR"}}]